bitfinex-derivatives/quotes_BNBF0:USTF0_20250406
["timestamp","ask_amount","ask_price","bid_price","bid_amount"]
[1743932944293,0.58087844,589.06,588.4,0.2864666]
[1743932944600,0.58087844,589.05,588.39,0.3399106]
[1743932944899,0.58087844,589.04,588.4,0.28646699]
[1743932945095,0.58087844,589.03,588.4,0.28646699]
[1743932945398,0.58087844,589.02,588.4,0.28646699]
[1743932945599,0.33936843,589.33,588.4,0.28646699]
[1743932945800,0.58087618,589.32,588.4,0.28646699]
[1743932945997,0.58087618,589.31,588.4,0.28646699]
[1743932946198,0.58087618,589.3,588.39,0.3399106]
[1743932946400,0.58087618,589.29,588.4,0.28646667]
[1743932946601,0.58087618,589.28,588.4,0.28646667]
[1743932946803,0.58087618,589.27,588.4,0.28646667]
[1743932947002,0.29536832,589.32,588.4,0.28646667]
[1743932947003,0.58087618,589.26,588.4,0.28646667]
[1743932947202,0.58087618,589.25,588.4,0.28646667]
[1743932947502,0.58087618,589.24,588.4,0.28646667]
[1743932947802,0.58087618,589.23,588.4,0.28646667]
[1743932948102,0.33936843,589.33,588.4,0.28646667]
[1743932948103,0.58087618,589.22,588.4,0.28646667]
[1743932948295,0.58087618,589.21,588.4,0.28646667]
[1743932948497,0.58087618,589.2,588.4,0.28646667]
[1743932948698,0.58087618,589.19,588.4,0.28646667]
[1743932948998,0.58087618,589.18,588.4,0.28646667]
[1743932949201,0.58087618,589.17,588.4,0.28646667]
[1743932949402,0.29545233,589.2,588.4,0.28646667]
[1743932949403,0.58092017,589.16,588.4,0.28646667]
[1743932949703,0.58092017,589.15,588.39,0.3399106]
[1743932949907,0.58092017,589.14,588.4,0.28647373]
[1743932950104,0.29545233,589.2,588.4,0.28647373]
[1743932950105,0.58092017,589.13,588.4,0.28647373]
[1743932950310,0.58092017,589.12,588.4,0.28647373]
[1743932950511,0.58092017,589.11,588.4,0.28647373]
[1743932950807,0.58092017,589.1,588.44,1.26919122]
[1743932951011,0.58092017,589.09,588.45,0.28647373]
[1743932951310,0.5809201,589.08,588.44,1.26919122]
[1743932951513,0.5809201,589.07,588.45,0.28648023]
[1743932951711,0.5809201,589.06,588.45,0.28648023]
[1743932951912,0.5809201,589.05,588.45,0.28648023]
[1743932952112,0.5809201,589.04,588.45,0.28648023]
[1743932952315,0.5809201,589.03,588.45,0.28648023]
[1743932952513,0.5809201,589.02,588.45,0.28648023]
[1743932952714,0.5809201,589.01,588.45,0.28648023]
[1743932952910,0.5809201,589.0,588.45,0.28648023]
[1743932953114,0.5809201,588.99,588.44,1.26919122]
[1743932953314,0.5809201,588.98,588.45,0.28650012]
[1743932953513,0.29544606,589.17,588.45,0.28650012]
[1743932953514,0.5809201,588.97,588.45,0.28650012]
[1743932953713,0.33936843,589.33,588.45,0.28650012]
[1743932953714,0.5809201,588.96,588.45,0.28650012]
[1743932953915,0.5809201,588.95,588.45,0.28650012]
[1743932954215,0.5809201,588.94,588.46,0.28650012]
[1743932954415,0.5809201,588.93,588.4,0.28650012]
[1743932954714,0.33936843,589.33,588.41,0.28650012]
[1743932954914,0.2954749,589.08,588.4,0.28650012]
[1743932955111,0.58079693,589.07,588.4,0.28650012]
[1743932955312,0.58079693,589.06,588.4,0.28650012]
[1743932955508,0.58079693,589.05,588.4,0.28650012]
[1743932955714,0.58079693,589.04,588.4,0.28650012]
[1743932956014,0.58079693,589.03,588.4,0.28650012]
[1743932956212,0.58079693,589.02,588.4,0.28650012]
[1743932956417,0.58079693,589.01,588.41,0.28650696]
[1743932956617,0.58079693,589.0,588.4,0.28650696]
[1743932956813,0.58079693,588.99,588.4,0.28650696]
[1743932957017,0.58079693,588.98,588.4,0.28650696]
[1743932957217,0.58079693,588.97,588.4,0.28650696]
[1743932957418,0.58079693,588.96,588.4,0.28650696]
[1743932957619,0.58079693,588.95,588.4,0.28650696]
[1743932957818,0.58079693,588.94,588.4,0.28650696]
[1743932958118,0.58079693,588.93,588.4,0.28650696]
[1743932958319,0.58079693,588.92,588.4,0.28650696]
[1743932958521,0.29550627,589.08,588.4,0.28650696]
[1743932958720,0.58066769,589.07,588.4,0.28650696]
[1743932958915,0.58066769,589.06,588.4,0.28650696]
[1743932959120,0.58066769,589.05,588.4,0.28650696]
[1743932959318,0.29550627,589.08,588.4,0.28650696]
[1743932959319,0.58066769,589.04,588.4,0.28650696]
[1743932959519,0.58066769,589.03,588.4,0.28650696]
[1743932959720,0.58066769,589.02,588.4,0.28650696]
[1743932960019,0.58066769,589.01,588.4,0.28650696]
[1743932960318,0.58066769,589.0,588.4,0.28650696]
[1743932960515,0.58066769,588.99,588.4,0.28650696]
[1743932960715,0.58066769,588.98,588.4,0.28650696]
[1743932960916,0.58066769,588.97,588.4,0.28650696]
[1743932961116,0.58066769,588.96,588.4,0.28650696]
[1743932961320,0.58066769,588.95,588.4,0.28650696]
[1743932961517,0.58066769,588.95,588.39,0.3399106]
[1743932961518,0.58066769,588.94,588.39,0.3399106]
[1743932961818,0.58066769,588.93,588.4,0.28650689]
[1743932962022,0.29547741,589.07,588.4,0.28650689]
[1743932962324,0.58061964,589.06,588.41,0.28650224]
[1743932962519,0.58061964,589.05,588.4,0.28650224]
[1743932962722,0.58061964,589.04,588.4,0.28650224]
[1743932962918,0.58061964,589.03,588.4,0.28650224]
[1743932963221,0.58061964,589.02,588.4,0.28650224]
[1743932963418,0.58061964,589.01,588.4,0.28650224]
[1743932963719,0.58061964,589.0,588.4,0.28650224]
[1743932963918,0.58061964,588.99,588.4,0.28650224]
[1743932964117,0.58061964,588.98,588.4,0.28650224]
[1743932964322,0.58061964,588.97,588.4,0.28650224]
[1743932964523,0.58061964,588.96,588.4,0.28650224]
[1743932964722,0.58061964,588.95,588.4,0.28650224]
[1743932965017,0.58061964,589.09,588.4,0.28650224]
[1743932965218,0.58061964,589.08,588.4,0.28650224]
[1743932965423,0.58061964,589.07,588.4,0.28650224]
[1743932965618,0.58061964,589.06,588.4,0.28650224]
[1743932965818,0.58061964,589.05,588.4,0.28650224]
[1743932966020,0.58088836,589.04,588.4,0.28650224]
[1743932966219,0.58088836,589.03,588.4,0.28650224]
[1743932966419,0.58088836,589.02,588.4,0.28650224]
[1743932966624,0.58088836,589.01,588.41,0.28650291]
[1743932966819,0.58088836,589.0,588.4,0.28650291]
[1743932967124,0.58088836,588.99,588.41,0.28650291]
[1743932967420,0.29546989,589.1,588.42,0.28650246]
[1743932967622,0.58083731,589.09,588.4,0.28650246]
[1743932967819,0.58083731,589.08,588.41,0.28650246]
[1743932968024,0.58083731,589.07,588.4,0.28650246]
[1743932968320,0.58083731,589.06,588.41,0.28650246]
[1743932968620,0.58083731,589.05,588.42,0.28650246]
[1743932968824,0.58083731,589.04,588.4,0.28650246]
[1743932969024,0.58083731,589.03,588.4,0.28650246]
[1743932969243,0.58083731,589.02,588.4,0.28650246]
[1743932969420,0.58083731,589.01,588.4,0.28650246]
[1743932969618,0.58083731,589.0,588.4,0.28650246]
[1743932969923,0.58083731,588.99,588.4,0.28650246]
[1743932970228,0.29549874,589.1,588.4,0.28650246]
[1743932970422,0.58078686,589.09,588.4,0.28650246]
[1743932970717,0.58078686,589.08,588.4,0.28650246]
[1743932970920,0.58078686,589.07,588.4,0.28650246]
[1743932971121,0.58078686,589.06,588.4,0.28650246]
[1743932971324,0.58078686,589.05,588.4,0.28650246]
[1743932971522,0.58078686,589.04,588.39,0.3399106]
[1743932971723,0.58078686,589.03,588.4,0.28650229]
[1743932971921,0.58078686,589.02,588.4,0.28650229]
[1743932972125,0.58078686,589.01,588.4,0.28650229]
[1743932972323,0.58078686,589.0,588.4,0.28650229]
[1743932972526,0.58078686,588.99,588.4,0.28650229]
[1743932972727,0.58078686,588.98,588.4,0.28650229]
[1743932972923,0.58078686,588.97,588.4,0.28650229]
[1743932973128,0.58078686,588.96,588.4,0.28650229]
[1743932973330,0.58075639,588.95,588.4,0.28650229]
[1743932973530,0.58075639,588.94,588.4,0.28650229]
[1743932973829,0.29551756,589.1,588.4,0.28650229]
[1743932974023,0.58075605,589.09,588.4,0.28650229]
[1743932974225,0.58075605,589.08,588.4,0.28650229]
[1743932974426,0.58075605,589.07,588.4,0.28650229]
[1743932974632,0.58075605,589.06,588.4,0.28650229]
[1743932974824,0.58075605,589.05,588.39,0.3399106]
[1743932975024,0.58075605,589.04,588.4,0.28650261]
[1743932975223,0.58075605,589.03,588.4,0.28650261]
[1743932975429,0.58075605,589.02,588.4,0.28650261]
[1743932975625,0.58075605,589.01,588.4,0.28650261]
[1743932975825,0.58075605,589.0,588.4,0.28650261]
[1743932976024,0.58075605,588.99,588.4,0.28650261]
[1743932976228,0.58075605,588.98,588.4,0.28650261]
[1743932976429,0.58075605,588.97,588.39,0.3399106]
[1743932976628,0.58075605,588.96,588.4,0.2865043]
[1743932976827,0.58075605,588.95,588.4,0.2865043]
[1743932977130,0.58075605,588.94,588.4,0.2865043]
[1743932977326,0.58075605,588.93,588.4,0.2865043]
[1743932977530,0.33936843,589.33,588.4,0.2865043]
[1743932977729,0.58070386,589.32,588.4,0.2865043]
[1743932977928,0.29550376,589.08,588.4,0.2865043]
[1743932978130,0.58070386,589.07,588.4,0.2865043]
[1743932978332,0.58070386,589.06,588.4,0.2865043]
[1743932978529,0.58070386,589.05,588.4,0.2865043]
[1743932978733,0.58070386,589.04,588.4,0.2865043]
[1743932978933,0.58068769,589.03,588.4,0.2865043]
[1743932979130,0.58068769,589.02,588.4,0.2865043]
[1743932979433,0.58068769,589.01,588.4,0.2865043]
[1743932979634,0.58068769,589.0,588.4,0.2865043]
[1743932979929,0.58068769,588.99,588.4,0.2865043]
[1743932980133,0.58068769,588.98,588.4,0.2865043]
[1743932980331,0.58068769,588.97,588.4,0.2865043]
[1743932980532,0.33937419,589.32,588.4,0.2865043]
[1743932980533,0.58068769,588.96,588.4,0.2865043]
[1743932980735,0.33937419,589.32,588.4,0.2865043]
[1743932980931,0.29551003,589.07,588.4,0.2865043]
[1743932981137,0.58067057,589.06,588.4,0.2865043]
[1743932981333,0.58067057,589.05,588.4,0.2865043]
[1743932981537,0.58067057,589.04,588.4,0.2865043]
[1743932981732,0.58067057,589.03,588.4,0.2865043]
[1743932981937,0.58067057,589.02,588.4,0.2865043]
[1743932982134,0.58067057,589.01,588.4,0.2865043]
[1743932982333,0.58067057,589.0,588.4,0.2865043]
[1743932982536,0.58067057,588.99,588.4,0.2865043]
[1743932982737,0.58067057,588.98,588.4,0.2865043]
[1743932982937,0.58067057,588.97,588.4,0.2865043]
[1743932983233,0.29547867,589.07,588.4,0.2865043]
[1743932983434,0.58063831,589.06,588.4,0.2865043]
[1743932983633,0.58063831,589.05,588.4,0.2865043]
[1743932983835,0.58063831,589.04,588.4,0.2865043]
[1743932984037,0.58063831,589.03,588.4,0.2865043]
[1743932984239,0.58063831,589.02,588.4,0.2865043]
[1743932984436,0.58063831,589.01,588.4,0.2865043]
[1743932984644,0.58063831,589.0,588.4,0.2865043]
[1743932984851,0.58063831,588.99,588.4,0.2865043]
[1743932985168,0.58063831,588.98,588.4,0.2865043]
[1743932985372,0.58063831,588.97,588.4,0.2865043]
[1743932985570,0.58063831,588.96,588.4,0.2865043]
[1743932985773,0.29547867,589.07,588.4,0.2865043]
[1743932986054,0.5806114,589.06,588.4,0.2865043]
[1743932986255,0.5806114,589.05,588.4,0.2865043]
[1743932986458,0.5806114,589.04,588.39,0.3399106]
[1743932986659,0.5806114,589.03,588.4,0.28650986]
[1743932986854,0.5806114,589.02,588.4,0.28650986]
[1743932987058,0.5806114,589.01,588.4,0.28650986]
[1743932987255,0.5806114,589.0,588.41,0.28651066]
[1743932987453,0.5806114,588.99,588.4,0.28651066]
[1743932987658,0.5806114,588.98,588.41,0.28651066]
[1743932987859,0.5806114,588.97,588.42,0.28651066]
[1743932988153,0.58058348,588.96,588.43,0.28651066]
[1743932988357,0.58058348,588.95,588.44,0.28651066]
[1743932988646,0.29553262,589.06,588.39,0.3399106]
[1743932988647,0.58058348,588.94,588.39,0.3399106]
[1743932988943,0.58058348,588.93,588.4,0.28652044]
[1743932989143,0.58058348,588.92,588.4,0.28652044]
[1743932989342,0.58058348,588.91,588.4,0.28652044]
[1743932989544,0.29553262,589.06,588.4,0.28652044]
[1743932989745,0.58058154,589.05,588.4,0.28652044]
[1743932989942,0.58058154,589.04,588.4,0.28652044]
[1743932990144,0.58058154,589.03,588.4,0.28652044]
[1743932990441,0.58058154,589.02,588.4,0.28652044]
[1743932990640,0.58058154,589.01,588.4,0.28652044]
[1743932990945,0.33937419,589.32,588.4,0.28652044]
[1743932990946,0.58058154,589.0,588.4,0.28652044]
[1743932991143,0.58058154,588.99,588.4,0.28652044]
[1743932991344,0.58058154,588.98,588.4,0.28652044]
[1743932991540,0.58058154,588.97,588.41,0.28651746]
[1743932991842,0.58058154,588.96,588.42,0.28651746]
[1743932992045,0.58058154,588.95,588.4,0.28651746]
[1743932992240,0.58058154,588.94,588.41,0.28651839]
[1743932992442,0.58058154,588.93,588.42,0.28651839]
[1743932992645,0.58058154,588.92,588.4,0.28651839]
[1743932992841,0.58058154,588.91,588.39,0.3399106]
[1743932993147,0.29551379,589.06,588.4,0.28652081]
[1743932993342,0.58062315,589.05,588.4,0.28652081]
[1743932993542,0.58062315,589.04,588.4,0.28652081]
[1743932993840,0.58062315,589.03,588.4,0.28652081]
[1743932994141,0.58062315,589.02,588.4,0.28652081]
[1743932994344,0.58062315,589.01,588.4,0.28652081]
[1743932994645,0.58062315,589.0,588.4,0.28652081]
[1743932994946,0.58062315,588.99,588.4,0.28652081]
[1743932995146,0.58062315,588.98,588.4,0.28652081]
[1743932995347,0.58062315,588.97,588.4,0.28652081]
[1743932995646,0.58062315,588.96,588.4,0.28652081]
[1743932995846,0.33937419,589.32,588.4,0.28652081]
[1743932996146,0.29551379,589.06,588.22,1.26919122]
[1743932996344,0.58063322,589.05,588.23,0.28653534]
[1743932996545,0.58063322,589.04,588.24,0.28653515]
[1743932996744,0.58063322,589.03,588.23,0.28653515]
[1743932996945,0.58063322,589.02,588.25,1.26919122]
[1743932997145,0.58063322,589.01,588.26,0.28653515]
[1743932997344,0.58058684,589.0,588.26,0.28653515]
[1743932997548,0.58058684,588.99,588.26,0.28653515]
[1743932997749,0.58058684,588.98,588.26,0.28653515]
[1743932997948,0.58058684,588.97,588.26,0.28653515]
[1743932998148,0.58058684,588.96,588.26,0.28653515]
[1743932998449,0.58058684,588.95,588.27,0.28653525]
[1743932998649,0.58058684,588.94,588.26,0.28653525]
[1743932998849,0.33937419,589.32,588.26,0.28653525]
[1743932999048,0.58061202,589.31,588.26,0.28653525]
[1743932999250,0.92001345,589.3,588.26,0.28653525]
[1743932999446,0.92001921,589.29,588.26,0.28653525]
[1743932999651,0.92002497,589.28,588.26,0.28653525]
[1743932999947,0.92003073,589.27,588.27,0.28653529]
[1743933000150,0.92003648,589.26,588.26,0.28653529]
[1743933000347,0.92004224,589.25,588.27,0.28653529]
[1743933000550,0.58062774,589.24,588.26,0.28653529]
[1743933000751,0.58062774,589.23,588.27,0.28653529]
[1743933000946,0.58062774,589.22,588.24,0.28653529]
[1743933001148,0.58062774,589.21,588.23,1.26919122]
[1743933001351,0.58062774,589.2,588.24,0.286535]
[1743933001548,0.58062774,589.19,588.24,0.286535]
[1743933001751,0.58062774,589.18,588.24,0.286535]
[1743933001951,0.58062774,589.17,588.24,0.286535]
[1743933002253,0.58066437,589.16,588.24,0.286535]
[1743933002553,0.58066437,589.15,588.24,0.286535]
[1743933002749,0.58066437,589.14,588.25,0.28653529]
[1743933003054,0.58066437,589.13,588.26,0.28653529]
[1743933003247,0.58066437,589.12,588.27,0.28653529]
[1743933003448,0.58066437,589.11,588.28,0.28653529]
[1743933003654,0.58066437,589.1,588.24,0.28653529]
[1743933003847,0.58066437,589.09,588.25,0.28653529]
[1743933004048,0.58066437,589.08,588.24,0.28653529]
[1743933004247,0.58066437,589.07,588.24,0.28653529]
[1743933004447,0.58066437,589.06,588.24,0.28653529]
[1743933004647,0.58066437,589.05,588.24,0.28653529]
[1743933004849,0.58066437,589.04,588.24,0.28653529]
[1743933005148,0.58066437,589.03,588.24,0.28653529]
[1743933005354,0.58066437,589.02,588.24,0.28653529]
[1743933005552,0.58066437,589.01,588.25,0.28653529]
[1743933005749,0.58066437,589.0,588.26,0.28653529]
[1743933005949,0.58066437,588.99,588.19,0.28653529]
[1743933006251,0.58066437,588.98,588.2,0.28653529]
[1743933006449,0.58066437,588.97,588.19,0.28653529]
[1743933006648,0.58066437,588.96,588.19,0.28653529]
[1743933006848,0.58066437,588.95,588.19,0.28653529]
[1743933007049,0.58066437,588.94,588.19,0.28653529]
[1743933007251,0.58066437,588.93,588.19,0.28653529]
[1743933007449,0.58066437,588.92,588.19,0.28653529]
[1743933007655,0.58066437,588.91,588.2,0.28654243]
[1743933007854,0.58090421,588.9,588.17,0.28654243]
[1743933008149,0.58090421,588.89,588.17,0.28654243]
[1743933008351,0.58090421,588.88,588.17,0.28654243]
[1743933008651,0.58090421,588.87,588.17,0.28654243]
[1743933008852,0.58090421,588.86,588.17,0.28654243]
[1743933009054,0.29553387,589.0,588.17,0.28654243]
[1743933009253,0.58094051,588.99,588.17,0.28654243]
[1743933009454,0.58094051,588.98,588.17,0.28654243]
[1743933009754,0.58094051,588.99,588.17,0.28654243]
[1743933009955,0.58094051,588.98,588.16,0.28654243]
[1743933010156,0.58094051,588.99,588.16,0.28654243]
[1743933010355,0.58094051,588.98,588.16,0.28654243]
[1743933010554,0.58094051,588.99,588.16,0.28654243]
[1743933010756,0.58094051,588.98,588.16,0.28654243]
[1743933010955,0.58101743,589.24,588.16,0.28654243]
[1743933011157,0.2955665,589.0,588.16,0.28654243]
[1743933011357,0.58101743,588.99,588.16,0.28654243]
[1743933011556,0.58101743,588.98,588.16,1.55573365]
[1743933011754,0.58101743,589.24,588.17,0.28654243]
[1743933011958,0.58101743,589.23,588.17,0.28654243]
[1743933012159,0.58101743,589.22,588.17,0.28654243]
[1743933012359,0.58101743,589.21,588.17,0.28654243]
[1743933012560,0.58101743,589.2,588.17,0.28654243]
[1743933012758,0.58101743,589.19,588.17,0.28654243]
[1743933012956,0.58101743,589.18,588.17,0.28654243]
[1743933013158,0.58101743,589.17,588.17,0.28654243]
[1743933013361,0.58109523,589.16,588.17,0.28654243]
[1743933013558,0.58109523,589.15,588.17,0.28654243]
[1743933013757,0.58109523,589.14,588.17,0.28654243]
[1743933013961,0.58109523,589.13,588.17,0.28654243]
[1743933014165,0.58109523,589.12,588.18,0.28654277]
[1743933014463,0.58109523,589.11,588.32,1.26919122]
[1743933014657,0.58109523,589.1,588.33,0.28654277]
[1743933014862,0.58109523,589.09,588.33,0.28654277]
[1743933015158,0.58109523,589.08,588.33,0.28654277]
[1743933015360,0.58109523,589.07,588.33,0.28654277]
[1743933015662,0.58109523,589.06,588.34,0.28654276]
[1743933015863,0.58109523,589.05,588.35,1.26919122]
[1743933016060,0.58109523,589.04,588.35,1.55573398]
[1743933016258,0.58109523,589.03,588.36,0.28654276]
[1743933016461,0.58109523,589.02,588.36,0.28654276]
[1743933016664,0.3394145,589.25,588.36,0.28654276]
[1743933016665,0.58109523,589.01,588.36,0.28654276]
[1743933016864,0.58109523,589.0,588.36,0.28654276]
[1743933017161,0.58109523,588.99,588.36,0.28654276]
[1743933017364,0.58109523,588.98,588.35,1.26919122]
[1743933017561,0.58109523,588.97,588.36,0.28654302]
[1743933017759,0.58109523,588.96,588.36,0.28654302]
[1743933017959,0.58109523,588.95,588.36,0.28654302]
[1743933018266,0.29551505,589.01,588.37,0.28654303]
[1743933018267,0.58109523,588.94,588.37,0.28654303]
[1743933018460,0.58109523,588.93,588.36,0.28654303]
[1743933018765,0.29551505,589.01,588.36,0.28654303]
[1743933019064,0.58103934,589.0,588.35,1.26919122]
[1743933019258,0.58103934,588.99,588.36,0.28653491]
[1743933019459,0.58103934,588.98,588.36,0.28653491]
[1743933019759,0.58103934,588.97,588.36,0.28653491]
[1743933019960,0.58103934,588.96,588.36,0.28653491]
[1743933020159,0.58103934,588.95,588.36,0.28653491]
[1743933020365,0.58103934,588.94,588.36,0.28653491]
[1743933020561,0.58103934,588.93,588.36,0.28653491]
[1743933020860,0.58106708,588.92,588.36,0.28653491]
[1743933021060,0.29554015,589.0,588.36,0.28653491]
[1743933021061,0.58106708,588.91,588.36,0.28653491]
[1743933021260,0.58106708,588.9,588.36,0.28653491]
[1743933021469,0.58106708,588.89,588.36,0.28653491]
[1743933021665,0.29554015,589.0,588.22,0.28653491]
[1743933021865,0.58118151,588.99,588.23,0.28653491]
[1743933022067,0.58118151,588.98,588.24,0.28653491]
[1743933022367,0.58118151,588.97,588.25,0.28653491]
[1743933022564,0.58118151,588.96,588.26,0.28651969]
[1743933022765,0.58118151,588.95,588.22,0.28651969]
[1743933022965,0.58118151,588.94,588.22,0.28651969]
[1743933023165,0.58118151,588.93,588.22,0.28651969]
[1743933023467,0.5812098,588.92,588.25,1.26919122]
[1743933023661,0.5812098,588.91,588.26,0.28651969]
[1743933023867,0.29554015,589.0,588.26,0.28651969]
[1743933024068,0.5812109,588.99,588.27,0.28651695]
[1743933024268,0.5812109,588.98,588.28,0.28651695]
[1743933024564,0.58122038,588.97,588.29,0.28651695]
[1743933024765,0.58122038,588.96,588.29,0.28651695]
[1743933024962,0.58122038,588.95,588.3,0.28651392]
[1743933025164,0.58122038,588.94,588.31,0.28651392]
[1743933025367,0.29553136,589.09,588.32,0.28651392]
[1743933025568,0.5812169,589.08,588.33,0.28651392]
[1743933025768,0.5812169,589.07,588.32,1.26919122]
[1743933025965,0.58119604,589.06,588.33,0.28651235]
[1743933026165,0.58119604,589.05,588.33,0.28651235]
[1743933026367,0.58119604,589.04,588.32,1.26919122]
[1743933026567,0.58119604,589.03,588.33,0.28651157]
[1743933026869,0.58119604,589.02,588.33,0.28651157]
[1743933027069,0.58119604,589.01,588.33,0.28651157]
[1743933027272,0.58119604,589.0,588.33,0.28651157]
[1743933027473,0.58119604,588.99,588.32,1.26919122]
[1743933027669,0.58119604,588.98,588.33,0.28651094]
[1743933027875,0.58119604,588.97,588.33,0.28651094]
[1743933028073,0.58123855,588.96,588.33,0.28651094]
[1743933028273,0.58123855,588.95,588.33,0.28651094]
[1743933028475,0.58123855,588.94,588.33,0.28651094]
[1743933028670,0.3394145,589.25,588.34,1.26919122]
[1743933028874,0.58124801,589.24,588.35,0.28651094]
[1743933029171,0.29550752,589.1,588.36,0.28650852]
[1743933029373,0.58124801,589.23,588.34,1.26919122]
[1743933029374,0.58124801,589.09,588.37,0.28650852]
[1743933029577,0.58124801,589.08,588.38,0.28650852]
[1743933029875,0.58125097,589.07,588.39,0.28650852]
[1743933030176,0.58125097,589.06,588.4,0.28650852]
[1743933030372,0.58125097,589.05,588.35,0.28650852]
[1743933030675,0.58125097,589.04,588.36,0.28650852]
[1743933030872,0.58125097,589.03,588.35,0.28650852]
[1743933031076,0.58125097,589.02,588.34,1.26919122]
[1743933031277,0.58125097,589.01,588.35,0.28650975]
[1743933031470,0.58125097,589.0,588.35,0.28650975]
[1743933031673,0.58125097,588.99,588.35,0.28650975]
[1743933031871,0.58125097,589.24,588.33,0.28650975]
[1743933032076,0.29550501,589.1,588.34,0.28650975]
[1743933032278,0.58125097,589.09,588.32,1.26919122]
[1743933032477,0.58125097,589.08,588.33,0.28650972]
[1743933032676,0.58125097,589.07,588.33,0.28650972]
[1743933032877,0.58125097,589.06,588.33,0.28650972]
[1743933033178,0.58125097,589.05,588.33,0.28650972]
[1743933033373,0.58125097,589.04,588.33,0.28650972]
[1743933033575,0.58125097,589.03,588.33,0.28650972]
[1743933033774,0.58125097,589.02,588.32,1.26919122]
[1743933034074,0.58125097,589.01,588.33,0.28651285]
[1743933034274,0.58125097,589.0,588.33,0.28651285]
[1743933034478,0.58125097,588.99,588.33,0.28651285]
[1743933034674,0.3394145,589.25,588.33,0.28651285]
[1743933034975,0.29550752,589.1,588.37,1.26919122]
[1743933035178,0.58124914,589.09,588.38,0.28651285]
[1743933035378,0.58124287,589.08,588.38,0.28651285]
[1743933035577,0.58124287,589.07,588.38,0.28651285]
[1743933035777,0.58124287,589.06,588.38,0.28651285]
[1743933035978,0.58124287,589.05,588.38,0.28651285]
[1743933036179,0.58124287,589.04,588.38,0.28651285]
[1743933036379,0.58124287,589.03,588.38,0.28651285]
[1743933036580,0.58124287,589.02,588.38,0.28651285]
[1743933036782,0.58124287,589.01,588.38,0.28651285]
[1743933036975,0.58124287,589.0,588.38,0.28651285]
[1743933037179,0.58124287,588.99,588.39,0.28651159]
[1743933037376,0.58125565,588.98,588.37,0.28651159]
[1743933037580,0.58125565,589.09,588.38,0.28651159]
[1743933037781,0.58125565,589.08,588.39,0.28651159]
[1743933037981,0.58125565,589.07,588.37,0.28651159]
[1743933038178,0.58125565,589.06,588.38,0.28651159]
[1743933038482,0.58125565,589.05,588.39,0.28651159]
[1743933038683,0.58125565,589.04,588.37,0.28651159]
[1743933038877,0.58125565,589.03,588.38,0.28651159]
[1743933039080,0.58125565,589.02,588.37,0.28651159]
[1743933039278,0.58125565,589.01,588.38,0.28651159]
[1743933039475,0.29548368,589.1,588.36,1.26919122]
[1743933039476,0.58125565,589.0,588.37,0.28651159]
[1743933039675,0.58125565,588.99,588.38,0.28651159]
[1743933039877,0.58125565,588.98,588.37,0.28651159]
[1743933040077,0.58125565,588.97,588.37,0.28651159]
[1743933040277,0.58125565,588.96,588.37,0.28651159]
[1743933040478,0.58125565,588.95,588.37,0.28651159]
[1743933040777,0.58125565,588.94,588.37,0.28651159]
[1743933040977,0.58125565,588.93,588.38,0.28651315]
[1743933041281,0.58125565,588.92,588.39,0.28651315]
[1743933041482,0.2955025,589.1,588.37,0.28651315]
[1743933041683,0.58126316,589.09,588.38,0.28651315]
[1743933041879,0.58126316,589.08,588.28,0.28651315]
[1743933042083,0.58126316,589.07,588.29,0.28651315]
[1743933042285,0.58126316,589.06,588.28,0.28651315]
[1743933042478,0.58126316,589.05,588.29,0.28651315]
[1743933042684,0.58126316,589.04,588.3,0.28651315]
[1743933042883,0.58126316,589.03,588.28,0.28651315]
[1743933043083,0.58126316,589.02,588.29,0.28651315]
[1743933043384,0.58126316,589.01,588.3,0.28651315]
[1743933043578,0.58126316,589.01,588.02,1.52302947]
[1743933043579,0.58126316,589.0,588.31,0.2865126]
[1743933043785,0.58126316,588.99,588.24,0.2865126]
[1743933044083,0.58126316,588.98,588.25,0.2865126]
[1743933044278,0.58126316,588.97,588.25,0.2865126]
[1743933044476,0.58126316,588.96,588.25,0.2865126]
[1743933044679,0.58126316,588.95,588.25,0.2865126]
[1743933044883,0.58126316,588.94,588.25,0.2865126]
[1743933045084,0.58126316,588.93,588.24,0.29549999]
[1743933045286,0.58126316,588.92,588.25,0.28651284]
[1743933045485,0.29549999,589.1,588.25,0.28651284]
[1743933045685,0.58126068,589.09,588.25,0.28651284]
[1743933045881,0.58126068,589.08,588.25,0.28651284]
[1743933046082,0.58126068,589.07,588.25,0.28651284]
[1743933046281,0.58126068,589.06,588.24,0.28651284]
[1743933046480,0.5812513,589.05,588.25,0.28651284]
[1743933046686,0.5812513,589.04,588.24,1.55570406]
[1743933046886,0.5812513,589.03,588.25,0.28651284]
[1743933047182,0.5812513,589.02,588.25,0.28651284]
[1743933047382,0.5812513,589.01,588.25,0.28651284]
[1743933047683,0.5812513,589.0,588.25,0.28651284]
[1743933047883,0.5812513,588.99,588.25,0.28651284]
[1743933048082,0.5812513,588.98,588.25,0.28651284]
[1743933048284,0.58125346,588.97,588.25,0.28651284]
[1743933048485,0.58125346,588.96,588.24,1.26919122]
[1743933048685,0.58125346,588.95,588.26,0.28652481]
[1743933048883,0.58125346,588.94,588.27,0.28652481]
[1743933049188,0.58125346,588.93,588.28,0.28652481]
[1743933049387,0.58125346,588.92,588.29,0.28652481]